[Event "Titled Tuesday Blitz January 31 Early 2023"]
[White "Zong, Davis"]
[Black "Hoffmann, Asa"]
[WhiteFideId "30903955"]
[BlackFideId "2001470"]
[WhiteElo "2151"]
[BlackElo "2185"]
[Result "0-1"]
[Round "06"]
[TimeControl "180+2"]
[Date "2023.01.31"]
[WhiteClock "0:00:30"]
[BlackClock "0:01:39"]

1. e4 {[%clk 0:03:00]}  d6 {[%clk 0:02:59]} 2. d4 {[%clk 0:03:00]}  Nf6 {[%clk 0:02:59]} 3. Nc3 {[%clk 0:03:00]}  c6 {[%clk 0:02:59]} 4. Bd3 {[%clk 0:02:57]}  e5 {[%clk 0:02:58]} 5. Nge2 {[%clk 0:02:56]}  Be7 {[%clk 0:02:56]} 6. O-O {[%clk 0:02:56]}  O-O {[%clk 0:02:55]} 7. a4 {[%clk 0:02:55]}  Qc7 {[%clk 0:02:53]} 8. h3 {[%clk 0:02:48]}  a5 {[%clk 0:02:50]} 9. f4 {[%clk 0:02:44]}  Na6 {[%clk 0:02:48]} 10. fxe5 {[%clk 0:02:37]}  dxe5 {[%clk 0:02:47]} 11. Bg5 {[%clk 0:02:30]}  exd4 {[%clk 0:02:44]} 12. Nxd4 {[%clk 0:02:30]}  h6 {[%clk 0:02:39]} 13. Be3 {[%clk 0:02:17]}  Nb4 {[%clk 0:02:28]} 14. Bc4 {[%clk 0:02:06]}  Rd8 {[%clk 0:02:23]} 15. Qe2 {[%clk 0:01:42]}  Qe5 {[%clk 0:02:15]} 16. Nf5 {[%clk 0:01:30]}  Bc5 {[%clk 0:02:07]} 17. Bb3 {[%clk 0:01:05]}  Bxf5 {[%clk 0:02:04]} 18. Rxf5 {[%clk 0:01:03]}  Bxe3+ {[%clk 0:02:03]} 19. Qxe3 {[%clk 0:01:04]}  Qd4 {[%clk 0:01:58]} 20. Qxd4 {[%clk 0:01:00]}  Rxd4 {[%clk 0:01:58]} 21. e5 {[%clk 0:01:01]}  Nfd5 {[%clk 0:01:57]} 22. Ne2 {[%clk 0:00:52]}  Rd2 {[%clk 0:01:50]} 23. Kf2 {[%clk 0:00:48]}  Nxc2 {[%clk 0:01:43]} 24. Rb1 {[%clk 0:00:31]}  Rxe2+ {[%clk 0:01:39]} 25. Kxe2 {[%clk 0:00:30]}  Nd4+ {[%clk 0:01:39]} 26. Kd3 {[%clk 0:00:30]}  Nxf5 {[%clk 0:01:39]} 0-1


[Site "https://www.chess.com"]

[Event "Titled Tuesday Blitz January 31 Early 2023"]
[White "Abdilkhair, Abilmansur"]
[Black "Bochnicka, Vladimir"]
[WhiteFideId "13716417"]
[BlackFideId "14943450"]
[WhiteElo "2268"]
[BlackElo "2327"]
[Result "1-0"]
[Round "06"]
[TimeControl "180+2"]
[Date "2023.01.31"]
[WhiteClock "0:00:49"]
[BlackClock "0:00:02"]

1. d4 {[%clk 0:03:00]}  Nf6 {[%clk 0:02:58]} 2. c4 {[%clk 0:03:00]}  g6 {[%clk 0:02:58]} 3. Nc3 {[%clk 0:03:01]}  Bg7 {[%clk 0:02:59]} 4. e4 {[%clk 0:03:01]}  d6 {[%clk 0:02:58]} 5. Nf3 {[%clk 0:03:02]}  O-O {[%clk 0:02:58]} 6. h3 {[%clk 0:03:03]}  e5 {[%clk 0:02:52]} 7. d5 {[%clk 0:03:03]}  c6 {[%clk 0:02:50]} 8. Be3 {[%clk 0:03:02]}  a5 {[%clk 0:02:40]} 9. Nd2 {[%clk 0:03:02]}  Na6 {[%clk 0:02:38]} 10. Be2 {[%clk 0:03:02]}  Nd7 {[%clk 0:02:34]} 11. O-O {[%clk 0:03:01]}  f5 {[%clk 0:02:33]} 12. exf5 {[%clk 0:02:55]}  gxf5 {[%clk 0:02:32]} 13. f4 {[%clk 0:02:52]}  Kh8 {[%clk 0:02:26]} 14. Nf3 {[%clk 0:02:47]}  c5 {[%clk 0:02:09]} 15. Ng5 {[%clk 0:02:44]}  Qe7 {[%clk 0:01:59]} 16. Ne6 {[%clk 0:02:43]}  Rg8 {[%clk 0:01:59]} 17. Nxg7 {[%clk 0:02:37]}  Qxg7 {[%clk 0:01:59]} 18. Rf2 {[%clk 0:02:35]}  Nc7 {[%clk 0:01:30]} 19. Qc2 {[%clk 0:02:33]}  Qg3 {[%clk 0:01:14]} 20. Kh1 {[%clk 0:01:59]}  Nf6 {[%clk 0:00:47]} 21. Qd2 {[%clk 0:01:47]}  Bd7 {[%clk 0:00:30]} 22. Bf1 {[%clk 0:01:47]}  Rg6 {[%clk 0:00:26]} 23. Rf3 {[%clk 0:01:47]}  Qh4 {[%clk 0:00:25]} 24. fxe5 {[%clk 0:01:46]}  dxe5 {[%clk 0:00:26]} 25. Bxc5 {[%clk 0:01:46]}  Rag8 {[%clk 0:00:26]} 26. Qf2 {[%clk 0:01:45]}  Qh6 {[%clk 0:00:19]} 27. Bd6 {[%clk 0:01:44]}  Ng4 {[%clk 0:00:14]} 28. Qe2 {[%clk 0:01:42]}  Rxd6 {[%clk 0:00:14]} 29. c5 {[%clk 0:01:41]}  Rdg6 {[%clk 0:00:11]} 30. Re1 {[%clk 0:01:39]}  Qg7 {[%clk 0:00:11]} 31. d6 {[%clk 0:01:23]}  Ne6 {[%clk 0:00:09]} 32. Qd2 {[%clk 0:01:09]}  Bc6 {[%clk 0:00:08]} 33. Nd5 {[%clk 0:01:08]}  Nf6 {[%clk 0:00:07]} 34. Nxf6 {[%clk 0:01:04]}  Qxf6 {[%clk 0:00:08]} 35. Rf2 {[%clk 0:01:04]}  Nf4 {[%clk 0:00:07]} 36. Qc3 {[%clk 0:00:52]}  Rg3 {[%clk 0:00:06]} 37. Qxe5 {[%clk 0:00:50]}  Qxe5 {[%clk 0:00:06]} 38. Rxe5 {[%clk 0:00:51]}  Rxh3+ {[%clk 0:00:05]} 39. Kg1 {[%clk 0:00:52]}  Rhg3 {[%clk 0:00:03]} 40. Rxf4 {[%clk 0:00:51]}  Bxg2 {[%clk 0:00:04]} 41. Kf2 {[%clk 0:00:51]}  Bxf1 {[%clk 0:00:03]} 42. Kxf1 {[%clk 0:00:52]}  Rd3 {[%clk 0:00:03]} 43. Rexf5 {[%clk 0:00:50]}  Rd2 {[%clk 0:00:03]} 44. Rf8 {[%clk 0:00:49]}  Rxb2 {[%clk 0:00:03]} 45. Rxg8+ {[%clk 0:00:48]}  Kxg8 {[%clk 0:00:03]} 46. Rd4 {[%clk 0:00:49]}  Rb1+ {[%clk 0:00:02]} 47. Ke2 {[%clk 0:00:49]}  Rb2+ {[%clk 0:00:02]} 48. Ke3 {[%clk 0:00:49]} 1-0


[Site "https://www.chess.com"]

[Event "Titled Tuesday Blitz January 31 Early 2023"]
[White "Mejia, Cherry Ann"]
[Black "Ramirez Allo, Eduardo"]
[WhiteFideId "5206880"]
[BlackFideId "2224178"]
[WhiteElo "1935"]
[BlackElo "2274"]
[Result "1-0"]
[Round "06"]
[TimeControl "180+2"]
[Date "2023.01.31"]
[WhiteClock "0:00:02"]
[BlackClock "0:00:01"]

1. e4 {[%clk 0:03:00]}  c5 {[%clk 0:02:59]} 2. Nc3 {[%clk 0:02:59]}  a6 {[%clk 0:02:59]} 3. g3 {[%clk 0:02:57]}  b5 {[%clk 0:02:59]} 4. Bg2 {[%clk 0:02:56]}  Bb7 {[%clk 0:03:00]} 5. Nge2 {[%clk 0:02:52]}  e6 {[%clk 0:02:58]} 6. O-O {[%clk 0:02:50]}  b4 {[%clk 0:02:56]} 7. Nb1 {[%clk 0:02:44]}  d5 {[%clk 0:02:56]} 8. exd5 {[%clk 0:02:35]}  Bxd5 {[%clk 0:02:56]} 9. d4 {[%clk 0:02:32]}  Nf6 {[%clk 0:02:54]} 10. c4 {[%clk 0:02:05]}  Bxg2 {[%clk 0:02:46]} 11. Kxg2 {[%clk 0:02:05]}  Nc6 {[%clk 0:02:47]} 12. dxc5 {[%clk 0:01:55]}  Bxc5 {[%clk 0:02:48]} 13. Bg5 {[%clk 0:01:53]}  Be7 {[%clk 0:02:36]} 14. Qc2 {[%clk 0:01:46]}  Qc7 {[%clk 0:02:32]} 15. Nd2 {[%clk 0:01:42]}  h6 {[%clk 0:02:25]} 16. Bxf6 {[%clk 0:01:17]}  Bxf6 {[%clk 0:02:26]} 17. Nf3 {[%clk 0:01:17]}  O-O {[%clk 0:02:23]} 18. Rad1 {[%clk 0:01:16]}  Rfd8 {[%clk 0:02:14]} 19. Qe4 {[%clk 0:01:16]}  a5 {[%clk 0:02:09]} 20. b3 {[%clk 0:01:16]}  g6 {[%clk 0:01:58]} 21. h4 {[%clk 0:01:12]}  h5 {[%clk 0:01:55]} 22. Ned4 {[%clk 0:00:46]}  Nxd4 {[%clk 0:01:49]} 23. Nxd4 {[%clk 0:00:47]}  Bxd4 {[%clk 0:01:20]} 24. Rxd4 {[%clk 0:00:45]}  Rxd4 {[%clk 0:01:21]} 25. Qxa8+ {[%clk 0:00:26]}  Kg7 {[%clk 0:01:20]} 26. Rc1 {[%clk 0:00:18]}  Rd2 {[%clk 0:01:18]} 27. c5 {[%clk 0:00:18]}  Rxa2 {[%clk 0:01:11]} 28. Qe4 {[%clk 0:00:15]}  a4 {[%clk 0:00:41]} 29. bxa4 {[%clk 0:00:14]}  b3 {[%clk 0:00:41]} 30. c6 {[%clk 0:00:08]}  Qb6 {[%clk 0:00:34]} 31. Qe5+ {[%clk 0:00:06]}  f6 {[%clk 0:00:29]} 32. Qf4 {[%clk 0:00:04]}  b2 {[%clk 0:00:27]} 33. Rb1 {[%clk 0:00:03]}  Qxc6+ {[%clk 0:00:25]} 34. Qf3 {[%clk 0:00:02]}  Qb6 {[%clk 0:00:20]} 35. Qc3 {[%clk 0:00:01]}  e5 {[%clk 0:00:13]} 36. a5 {[%clk 0:00:02]}  Rxa5 {[%clk 0:00:06]} 37. Rxb2 {[%clk 0:00:01]}  Qa6 {[%clk 0:00:05]} 38. Qc7+ {[%clk 0:00:01]}  Kh6 {[%clk 0:00:04]} 39. Rb7 {[%clk 0:00:02]}  g5 {[%clk 0:00:01]} 40. Qh7# {[%clk 0:00:02]} 1-0


[Site "https://www.chess.com"]

[Event "Titled Tuesday Blitz January 31 Early 2023"]
[White "Alahakoon, Isuru"]
[Black "Turzo, Attila"]
[WhiteFideId "9900993"]
[BlackFideId "704954"]
[WhiteElo "1819"]
[BlackElo "2279"]
[Result "1-0"]
[Round "06"]
[TimeControl "180+2"]
[Date "2023.01.31"]
[WhiteClock "0:00:31"]
[BlackClock "0:00:01"]

1. Nf3 {[%clk 0:03:00]}  Nf6 {[%clk 0:02:57]} 2. d4 {[%clk 0:02:59]}  g6 {[%clk 0:02:57]} 3. Nc3 {[%clk 0:02:59]}  d5 {[%clk 0:02:57]} 4. Bf4 {[%clk 0:02:58]}  Bg7 {[%clk 0:02:48]} 5. e3 {[%clk 0:02:58]}  O-O {[%clk 0:02:48]} 6. h4 {[%clk 0:02:57]}  h5 {[%clk 0:02:47]} 7. Be2 {[%clk 0:02:56]}  c5 {[%clk 0:02:47]} 8. Nb5 {[%clk 0:02:55]}  Na6 {[%clk 0:02:46]} 9. c3 {[%clk 0:02:54]}  Qb6 {[%clk 0:02:39]} 10. a4 {[%clk 0:02:52]}  Bd7 {[%clk 0:02:35]} 11. Ne5 {[%clk 0:02:51]}  cxd4 {[%clk 0:02:30]} 12. exd4 {[%clk 0:02:49]}  Bf5 {[%clk 0:02:25]} 13. g4 {[%clk 0:02:42]}  hxg4 {[%clk 0:02:20]} 14. Nxg4 {[%clk 0:02:41]}  Nxg4 {[%clk 0:02:10]} 15. Bxg4 {[%clk 0:02:42]}  Qe6+ {[%clk 0:02:10]} 16. Be2 {[%clk 0:02:37]}  Bg4 {[%clk 0:01:51]} 17. Be5 {[%clk 0:02:24]}  Bxe2 {[%clk 0:01:25]} 18. Qxe2 {[%clk 0:02:23]}  Bxe5 {[%clk 0:01:17]} 19. dxe5 {[%clk 0:02:24]}  Kg7 {[%clk 0:01:17]} 20. Nd4 {[%clk 0:02:24]}  Qc8 {[%clk 0:01:11]} 21. h5 {[%clk 0:02:23]}  Rh8 {[%clk 0:01:10]} 22. O-O-O {[%clk 0:02:22]}  Nc5 {[%clk 0:00:58]} 23. hxg6 {[%clk 0:02:21]}  fxg6 {[%clk 0:00:54]} 24. e6 {[%clk 0:02:19]}  Ne4 {[%clk 0:00:46]} 25. f3 {[%clk 0:02:17]}  Nf6 {[%clk 0:00:46]} 26. Qg2 {[%clk 0:02:12]}  Qg8 {[%clk 0:00:20]} 27. Rxh8 {[%clk 0:01:36]}  Qxh8 {[%clk 0:00:20]} 28. Rh1 {[%clk 0:01:36]}  Nh5 {[%clk 0:00:19]} 29. Rg1 {[%clk 0:01:29]}  Qh6+ {[%clk 0:00:17]} 30. Kb1 {[%clk 0:01:27]}  Rf8 {[%clk 0:00:17]} 31. Qh2 {[%clk 0:01:20]}  Kh7 {[%clk 0:00:17]} 32. Qc7 {[%clk 0:01:16]}  Qg7 {[%clk 0:00:12]} 33. Qxb7 {[%clk 0:01:13]}  Nf4 {[%clk 0:00:11]} 34. Rh1+ {[%clk 0:01:04]}  Kg8 {[%clk 0:00:11]} 35. Nc6 {[%clk 0:00:58]}  Re8 {[%clk 0:00:10]} 36. Qd7 {[%clk 0:00:57]}  Kf8 {[%clk 0:00:09]} 37. Qxa7 {[%clk 0:00:50]}  Qf6 {[%clk 0:00:06]} 38. Qd4 {[%clk 0:00:36]}  Nxe6 {[%clk 0:00:01]} 39. Rh8+ {[%clk 0:00:31]} 1-0


[Site "https://www.chess.com"]

[Event "Titled Tuesday Blitz January 31 Early 2023"]
[White "Erzhanov, Arman"]
[Black "Rose, Felix"]
[WhiteFideId "4138821"]
[BlackFideId "5105722"]
[WhiteElo "2228"]
[BlackElo "2091"]
[Result "1-0"]
[Round "06"]
[TimeControl "180+2"]
[Date "2023.01.31"]
[WhiteClock "0:00:54"]
[BlackClock "0:00:14"]

1. e4 {[%clk 0:02:51]}  e5 {[%clk 0:02:55]} 2. Nf3 {[%clk 0:02:52]}  Nc6 {[%clk 0:02:54]} 3. Bb5 {[%clk 0:02:52]}  a6 {[%clk 0:02:53]} 4. Bxc6 {[%clk 0:02:53]}  dxc6 {[%clk 0:02:54]} 5. O-O {[%clk 0:02:54]}  Qf6 {[%clk 0:02:54]} 6. d3 {[%clk 0:02:53]}  Ne7 {[%clk 0:02:44]} 7. Nbd2 {[%clk 0:02:48]}  Ng6 {[%clk 0:02:42]} 8. Nc4 {[%clk 0:02:48]}  Bg4 {[%clk 0:02:34]} 9. h3 {[%clk 0:02:44]}  Bxf3 {[%clk 0:02:32]} 10. Qxf3 {[%clk 0:02:44]}  Qxf3 {[%clk 0:02:32]} 11. gxf3 {[%clk 0:02:45]}  O-O-O {[%clk 0:01:58]} 12. Kh2 {[%clk 0:02:44]}  Be7 {[%clk 0:01:46]} 13. Rg1 {[%clk 0:02:42]}  Rd7 {[%clk 0:01:43]} 14. Be3 {[%clk 0:02:40]}  Rhd8 {[%clk 0:01:41]} 15. a4 {[%clk 0:02:40]}  b6 {[%clk 0:01:36]} 16. Rg4 {[%clk 0:02:36]}  h5 {[%clk 0:01:28]} 17. Rgg1 {[%clk 0:02:35]}  Kb7 {[%clk 0:01:22]} 18. Kg3 {[%clk 0:02:35]}  Bh4+ {[%clk 0:01:19]} 19. Kh2 {[%clk 0:02:34]}  Bf6 {[%clk 0:01:18]} 20. Bd2 {[%clk 0:02:24]}  Kc8 {[%clk 0:01:01]} 21. Bg5 {[%clk 0:02:24]}  b5 {[%clk 0:00:39]} 22. Na5 {[%clk 0:02:17]}  Rd6 {[%clk 0:00:37]} 23. Be3 {[%clk 0:02:14]}  Re6 {[%clk 0:00:29]} 24. Ra3 {[%clk 0:02:13]}  Be7 {[%clk 0:00:28]} 25. Raa1 {[%clk 0:02:04]}  Rf6 {[%clk 0:00:19]} 26. Rg3 {[%clk 0:01:31]}  h4 {[%clk 0:00:17]} 27. Rg4 {[%clk 0:01:31]}  Rxf3 {[%clk 0:00:16]} 28. Nxc6 {[%clk 0:01:31]}  Rd7 {[%clk 0:00:12]} 29. axb5 {[%clk 0:01:31]}  axb5 {[%clk 0:00:13]} 30. Ra5 {[%clk 0:01:18]}  Rd6 {[%clk 0:00:12]} 31. Na7+ {[%clk 0:01:12]}  Kd7 {[%clk 0:00:12]} 32. Nxb5 {[%clk 0:01:13]}  Rb6 {[%clk 0:00:12]} 33. Bxb6 {[%clk 0:01:10]}  cxb6 {[%clk 0:00:13]} 34. Ra7+ {[%clk 0:01:10]}  Ke6 {[%clk 0:00:14]} 35. Kg2 {[%clk 0:01:10]}  Rf6 {[%clk 0:00:13]} 36. Nc7+ {[%clk 0:01:10]}  Kd7 {[%clk 0:00:13]} 37. Nd5+ {[%clk 0:01:10]}  Ke6 {[%clk 0:00:13]} 38. Kf1 {[%clk 0:01:06]}  Bc5 {[%clk 0:00:12]} 39. b4 {[%clk 0:01:05]}  Bd4 {[%clk 0:00:11]} 40. Nxf6 {[%clk 0:01:00]}  gxf6 {[%clk 0:00:11]} 41. Rb7 {[%clk 0:00:58]}  f5 {[%clk 0:00:11]} 42. exf5+ {[%clk 0:00:57]}  Kxf5 {[%clk 0:00:12]} 43. Rxf7+ {[%clk 0:00:57]}  Ke6 {[%clk 0:00:12]} 44. Rb7 {[%clk 0:00:56]}  Nf4 {[%clk 0:00:13]} 45. Rxh4 {[%clk 0:00:55]}  Bc3 {[%clk 0:00:12]} 46. Rxb6+ {[%clk 0:00:54]}  Kf5 {[%clk 0:00:12]} 47. Rxf4+ {[%clk 0:00:54]}  Kxf4 {[%clk 0:00:13]} 48. Kg2 {[%clk 0:00:54]}  e4 {[%clk 0:00:13]} 49. dxe4 {[%clk 0:00:54]}  Kxe4 {[%clk 0:00:13]} 50. h4 {[%clk 0:00:54]}  Bxb4 {[%clk 0:00:14]} 51. Rxb4+ {[%clk 0:00:54]} 1-0


[Site "https://www.chess.com"]

[Event "Titled Tuesday Blitz January 31 Early 2023"]
[White "Vagman, Roy"]
[Black "Lobachev, Yury"]
[WhiteFideId "2828995"]
[BlackFideId "24138177"]
[WhiteElo "2273"]
[BlackElo "2345"]
[Result "1-0"]
[Round "06"]
[TimeControl "180+2"]
[Date "2023.01.31"]
[WhiteClock "0:02:21"]
[BlackClock "0:02:43"]

1. e4 {[%clk 0:03:00]}  c5 {[%clk 0:03:00]} 2. Nf3 {[%clk 0:02:57]}  e6 {[%clk 0:03:00]} 3. d4 {[%clk 0:02:55]}  cxd4 {[%clk 0:03:01]} 4. c3 {[%clk 0:02:55]}  dxc3 {[%clk 0:03:00]} 5. Nxc3 {[%clk 0:02:56]}  a6 {[%clk 0:03:00]} 6. Bc4 {[%clk 0:02:55]}  b5 {[%clk 0:03:00]} 7. Bb3 {[%clk 0:02:54]}  Nc6 {[%clk 0:03:01]} 8. O-O {[%clk 0:02:55]}  Na5 {[%clk 0:03:02]} 9. Re1 {[%clk 0:02:53]}  Nxb3 {[%clk 0:02:59]} 10. Qxb3 {[%clk 0:02:54]}  Bb7 {[%clk 0:02:58]} 11. Bf4 {[%clk 0:02:54]}  Nf6 {[%clk 0:02:58]} 12. Rad1 {[%clk 0:02:54]}  Be7 {[%clk 0:02:56]} 13. h3 {[%clk 0:02:36]}  O-O {[%clk 0:02:56]} 14. a3 {[%clk 0:02:25]}  d5 {[%clk 0:02:43]} 15. e5 {[%clk 0:02:21]}  Ne4 {[%clk 0:02:43]} 16. Nxe4 {[%clk 0:02:21]} 1-0


[Site "https://www.chess.com"]

[Event "Titled Tuesday Blitz January 31 Early 2023"]
[White "Khamdamova, Afruza"]
[Black "Torres Dominguez, David"]
[WhiteFideId "14210444"]
[BlackFideId "2220857"]
[WhiteElo "2162"]
[BlackElo "1994"]
[Result "0-1"]
[Round "06"]
[TimeControl "180+2"]
[Date "2023.01.31"]
[WhiteClock "0:00:05"]
[BlackClock "0:00:03"]

1. e4 {[%clk 0:03:00]}  Nc6 {[%clk 0:02:58]} 2. d4 {[%clk 0:03:00]}  e5 {[%clk 0:02:58]} 3. d5 {[%clk 0:02:54]}  Nce7 {[%clk 0:02:56]} 4. Nf3 {[%clk 0:02:23]}  Ng6 {[%clk 0:02:51]} 5. Nc3 {[%clk 0:02:23]}  Bb4 {[%clk 0:02:50]} 6. Bd3 {[%clk 0:02:17]}  d6 {[%clk 0:02:43]} 7. O-O {[%clk 0:02:15]}  N8e7 {[%clk 0:02:43]} 8. Ne2 {[%clk 0:02:13]}  O-O {[%clk 0:02:40]} 9. a4 {[%clk 0:02:13]}  a5 {[%clk 0:02:34]} 10. Be3 {[%clk 0:02:10]}  f5 {[%clk 0:02:34]} 11. exf5 {[%clk 0:01:59]}  Bxf5 {[%clk 0:02:32]} 12. Ng3 {[%clk 0:01:54]}  Bg4 {[%clk 0:02:17]} 13. Be2 {[%clk 0:01:53]}  Nf4 {[%clk 0:02:09]} 14. Bxf4 {[%clk 0:01:51]}  Rxf4 {[%clk 0:02:05]} 15. Ng5 {[%clk 0:01:47]}  Bd7 {[%clk 0:01:57]} 16. Nh5 {[%clk 0:01:29]}  Rf8 {[%clk 0:01:53]} 17. Bg4 {[%clk 0:01:28]}  Nf5 {[%clk 0:01:50]} 18. Ne6 {[%clk 0:01:20]}  Bxe6 {[%clk 0:01:49]} 19. dxe6 {[%clk 0:01:20]}  Qg5 {[%clk 0:01:32]} 20. Ng3 {[%clk 0:00:38]}  Ne7 {[%clk 0:01:20]} 21. Ne4 {[%clk 0:00:36]}  Qg6 {[%clk 0:01:17]} 22. Ng3 {[%clk 0:00:21]}  Bc5 {[%clk 0:01:15]} 23. b3 {[%clk 0:00:11]}  Rf4 {[%clk 0:01:14]} 24. Be2 {[%clk 0:00:11]}  Raf8 {[%clk 0:01:13]} 25. Bd3 {[%clk 0:00:08]}  Rxf2 {[%clk 0:00:53]} 26. Rxf2 {[%clk 0:00:06]}  Rxf2 {[%clk 0:00:52]} 27. Bxg6 {[%clk 0:00:05]}  Rd2+ {[%clk 0:00:51]} 28. Kh1 {[%clk 0:00:05]}  Rxd1+ {[%clk 0:00:51]} 29. Rxd1 {[%clk 0:00:05]}  Nxg6 {[%clk 0:00:49]} 30. Ne4 {[%clk 0:00:06]}  Bb6 {[%clk 0:00:45]} 31. Rf1 {[%clk 0:00:07]}  d5 {[%clk 0:00:32]} 32. Ng3 {[%clk 0:00:05]}  Bc5 {[%clk 0:00:31]} 33. Nf5 {[%clk 0:00:05]}  Kf8 {[%clk 0:00:17]} 34. h4 {[%clk 0:00:02]}  Ke8 {[%clk 0:00:15]} 35. Nxg7+ {[%clk 0:00:02]}  Ke7 {[%clk 0:00:15]} 36. h5 {[%clk 0:00:03]}  Nf4 {[%clk 0:00:15]} 37. Nf5+ {[%clk 0:00:03]}  Kxe6 {[%clk 0:00:13]} 38. Ng7+ {[%clk 0:00:03]}  Kf7 {[%clk 0:00:10]} 39. g3 {[%clk 0:00:03]}  Kxg7 {[%clk 0:00:10]} 40. gxf4 {[%clk 0:00:04]}  exf4 {[%clk 0:00:11]} 41. Rxf4 {[%clk 0:00:04]}  Bd6 {[%clk 0:00:11]} 42. Rf5 {[%clk 0:00:04]}  c6 {[%clk 0:00:11]} 43. Kg2 {[%clk 0:00:04]}  h6 {[%clk 0:00:11]} 44. Kf3 {[%clk 0:00:05]}  Bc5 {[%clk 0:00:09]} 45. Ke2 {[%clk 0:00:05]}  Bd6 {[%clk 0:00:09]} 46. Kd3 {[%clk 0:00:06]}  Bc5 {[%clk 0:00:09]} 47. Rf1 {[%clk 0:00:06]}  Bb6 {[%clk 0:00:09]} 48. c3 {[%clk 0:00:07]}  Bc7 {[%clk 0:00:09]} 49. b4 {[%clk 0:00:07]}  axb4 {[%clk 0:00:08]} 50. cxb4 {[%clk 0:00:07]}  Bd6 {[%clk 0:00:06]} 51. Kc3 {[%clk 0:00:06]}  Bc7 {[%clk 0:00:05]} 52. a5 {[%clk 0:00:06]}  Bd6 {[%clk 0:00:04]} 53. Ra1 {[%clk 0:00:06]}  Kf6 {[%clk 0:00:03]} 54. Ra2 {[%clk 0:00:06]}  Ke6 {[%clk 0:00:02]} 55. a6 {[%clk 0:00:06]}  bxa6 {[%clk 0:00:02]} 56. Rxa6 {[%clk 0:00:07]}  Kd7 {[%clk 0:00:03]} 57. Ra7+ {[%clk 0:00:07]}  Ke6 {[%clk 0:00:03]} 58. Rh7 {[%clk 0:00:07]}  Bf4 {[%clk 0:00:03]} 59. Kd4 {[%clk 0:00:07]}  Kd6 {[%clk 0:00:02]} 60. Rh8 {[%clk 0:00:07]}  Bg5 {[%clk 0:00:02]} 61. Ra8 {[%clk 0:00:05]}  Kc7 {[%clk 0:00:02]} 62. Ra7+ {[%clk 0:00:05]}  Kb6 {[%clk 0:00:02]} 63. Ra8 {[%clk 0:00:05]}  Kb7 {[%clk 0:00:02]} 64. Rg8 {[%clk 0:00:04]}  Bf6+ {[%clk 0:00:01]} 65. Kc5 {[%clk 0:00:04]}  Bc3 {[%clk 0:00:01]} 66. b5 {[%clk 0:00:04]}  cxb5 {[%clk 0:00:01]} 67. Kxb5 {[%clk 0:00:03]}  d4 {[%clk 0:00:01]} 68. Kc4 {[%clk 0:00:04]}  Bd2 {[%clk 0:00:01]} 69. Kxd4 {[%clk 0:00:04]}  Bf4 {[%clk 0:00:02]} 70. Ke4 {[%clk 0:00:04]}  Bc1 {[%clk 0:00:02]} 71. Kf5 {[%clk 0:00:04]}  Kc7 {[%clk 0:00:03]} 72. Kg6 {[%clk 0:00:05]}  Kd7 {[%clk 0:00:03]} 73. Rh8 {[%clk 0:00:05]}  Ke7 {[%clk 0:00:04]} 74. Rg8 {[%clk 0:00:05]}  Bg5 {[%clk 0:00:04]} 75. Rg7+ {[%clk 0:00:05]}  Kf8 {[%clk 0:00:05]} 76. Rb7 {[%clk 0:00:05]}  Bd2 {[%clk 0:00:03]} 0-1


[Site "https://www.chess.com"]

[Event "Titled Tuesday Blitz January 31 Early 2023"]
[White "Lesbekova, Assel"]
[Black "Bambino Filho, Antonio Carlos"]
[WhiteFideId "13713248"]
[BlackFideId "2113163"]
[WhiteElo "1772"]
[BlackElo "2144"]
[Result "1-0"]
[Round "06"]
[TimeControl "180+2"]
[Date "2023.01.31"]
[WhiteClock "0:01:21"]
[BlackClock "0:00:16"]

1. e4 {[%clk 0:03:00]}  c5 {[%clk 0:02:58]} 2. Nc3 {[%clk 0:02:59]}  Nc6 {[%clk 0:02:56]} 3. Nge2 {[%clk 0:02:58]}  e6 {[%clk 0:02:54]} 4. d4 {[%clk 0:02:57]}  cxd4 {[%clk 0:02:55]} 5. Nxd4 {[%clk 0:02:57]}  Qc7 {[%clk 0:02:56]} 6. g3 {[%clk 0:02:55]}  a6 {[%clk 0:02:56]} 7. Bg2 {[%clk 0:02:55]}  Nf6 {[%clk 0:02:55]} 8. O-O {[%clk 0:02:54]}  d6 {[%clk 0:02:53]} 9. Kh1 {[%clk 0:02:49]}  Bd7 {[%clk 0:02:53]} 10. f4 {[%clk 0:02:49]}  Be7 {[%clk 0:02:54]} 11. Nb3 {[%clk 0:02:44]}  O-O {[%clk 0:02:49]} 12. a4 {[%clk 0:02:43]}  Rac8 {[%clk 0:02:46]} 13. Be3 {[%clk 0:02:39]}  b6 {[%clk 0:02:43]} 14. g4 {[%clk 0:02:35]}  Na5 {[%clk 0:02:15]} 15. Nxa5 {[%clk 0:02:33]}  bxa5 {[%clk 0:02:16]} 16. g5 {[%clk 0:02:31]}  Ne8 {[%clk 0:02:16]} 17. f5 {[%clk 0:02:24]}  g6 {[%clk 0:02:08]} 18. f6 {[%clk 0:02:21]}  Bd8 {[%clk 0:02:08]} 19. Rf4 {[%clk 0:02:00]}  Bc6 {[%clk 0:02:00]} 20. Qf3 {[%clk 0:01:53]}  Qb7 {[%clk 0:01:50]} 21. Qh3 {[%clk 0:01:52]}  Bc7 {[%clk 0:01:21]} 22. Rh4 {[%clk 0:01:51]}  h5 {[%clk 0:01:22]} 23. Bf3 {[%clk 0:01:48]}  Qxb2 {[%clk 0:01:05]} 24. Rb1 {[%clk 0:01:34]}  Qxc3 {[%clk 0:01:02]} 25. Bxh5 {[%clk 0:01:33]}  gxh5 {[%clk 0:01:02]} 26. Rxh5 {[%clk 0:01:31]}  Bxe4+ {[%clk 0:01:00]} 27. Kg1 {[%clk 0:01:30]}  Qxe3+ {[%clk 0:00:30]} 28. Qxe3 {[%clk 0:01:29]}  Bg6 {[%clk 0:00:31]} 29. Rh6 {[%clk 0:01:29]}  Nxf6 {[%clk 0:00:15]} 30. gxf6 {[%clk 0:01:25]}  Bd8 {[%clk 0:00:16]} 31. Rh8+ {[%clk 0:01:21]} 1-0


[Site "https://www.chess.com"]